[Event "*** Titled Tuesday Blitz"]
[Site "Chess.com"]
[Date "2020.11.03"]
[Round "6"]
[White "DinaBelenkaya"]
[Black "Kavyev_Ruslan"]
[Result "0-1"]
[WhiteElo "2348"]
[BlackElo "2500"]
[TimeControl "180+1"]
[EndTime "11:10:05 PST"]
[Termination "Kavyev_Ruslan won on time"]

1. e4 {[%clk 0:03:00.9]} 1... c5 {[%clk 0:02:59]} 2. Nc3 {[%clk 0:02:59.6]} 2...
d6 {[%clk 0:02:58.8]} 3. g3 {[%clk 0:02:56]} 3... Nc6 {[%clk 0:02:58.4]} 4. Bg2
{[%clk 0:02:55.2]} 4... g6 {[%clk 0:02:59]} 5. Nge2 {[%clk 0:02:49.3]} 5... Bg7
{[%clk 0:02:59.1]} 6. d3 {[%clk 0:02:49.1]} 6... e6 {[%clk 0:02:59.3]} 7. O-O
{[%clk 0:02:40.8]} 7... Nge7 {[%clk 0:02:59.1]} 8. Bg5 {[%clk 0:02:40.3]} 8...
O-O {[%clk 0:02:51.6]} 9. Qd2 {[%clk 0:02:39.4]} 9... Rb8 {[%clk 0:02:50.2]} 10.
Bh6 {[%clk 0:02:39.3]} 10... b5 {[%clk 0:02:49.4]} 11. Qg5 {[%clk 0:02:27.7]}
11... e5 {[%clk 0:02:36.7]} 12. Qh4 {[%clk 0:02:21.9]} 12... Nd4 {[%clk
0:02:31.5]} 13. f4 {[%clk 0:02:10.7]} 13... Nec6 {[%clk 0:02:14.6]} 14. Bg5
{[%clk 0:01:52.8]} 14... f6 {[%clk 0:02:10]} 15. Bh6 {[%clk 0:01:53]} 15... Be6
{[%clk 0:01:59]} 16. f5 {[%clk 0:01:35.9]} 16... Bf7 {[%clk 0:01:57.6]} 17. Nxd4
{[%clk 0:01:15.6]} 17... Nxd4 {[%clk 0:01:56.7]} 18. Rf2 {[%clk 0:01:14.8]}
18... g5 {[%clk 0:01:51.9]} 19. Qh3 {[%clk 0:01:15]} 19... Re8 {[%clk
0:01:34.3]} 20. Nd1 {[%clk 0:01:11.8]} 20... Qe7 {[%clk 0:01:30.5]} 21. c3
{[%clk 0:01:07.9]} 21... Nc6 {[%clk 0:01:30.5]} 22. Ne3 {[%clk 0:01:07.9]} 22...
Qf8 {[%clk 0:01:30.7]} 23. Ng4 {[%clk 0:01:07.4]} 23... Bxh6 {[%clk 0:01:12.4]}
24. Nxh6+ {[%clk 0:01:03.5]} 24... Kh8 {[%clk 0:01:12.6]} 25. Bf3 {[%clk
0:00:58.2]} 25... Re7 {[%clk 0:01:05.4]} 26. Rd1 {[%clk 0:00:44.4]} 26... b4
{[%clk 0:01:04.6]} 27. Ng4 {[%clk 0:00:21.2]} 27... Qg7 {[%clk 0:00:54.9]} 28.
a3 {[%clk 0:00:15]} 28... a5 {[%clk 0:00:52.6]} 29. axb4 {[%clk 0:00:14.1]}
29... axb4 {[%clk 0:00:52.9]} 30. Be2 {[%clk 0:00:13.8]} 30... h5 {[%clk
0:00:45.9]} 31. Ne3 {[%clk 0:00:11.6]} 31... Qh6 {[%clk 0:00:38.4]} 32. Nd5
{[%clk 0:00:08.6]} 32... Ra7 {[%clk 0:00:33.2]} 33. g4 {[%clk 0:00:04.8]} 33...
h4 {[%clk 0:00:32.3]} 34. cxb4 {[%clk 0:00:03.8]} 34... Nxb4 {[%clk 0:00:31.9]}
35. d4 {[%clk 0:00:03.6]} 35... cxd4 {[%clk 0:00:30.5]} 0-1

[Event "*** Titled Tuesday Blitz"]
[Site "Chess.com"]
[Date "2020.11.03"]
[Round "6"]
[White "MissingLife"]
[Black "enriquetejedor"]
[Result "0-1"]
[WhiteElo "2198"]
[BlackElo "2489"]
[TimeControl "180+1"]
[EndTime "11:10:08 PST"]
[Termination "enriquetejedor won on time"]

1. Nf3 {[%clk 0:03:00.9]} 1... d6 {[%clk 0:02:56.7]} 2. c4 {[%clk 0:02:59.6]}
2... e5 {[%clk 0:02:56.1]} 3. g3 {[%clk 0:02:58.5]} 3... g6 {[%clk 0:02:45.9]}
4. Bg2 {[%clk 0:02:57.8]} 4... Bg7 {[%clk 0:02:45.5]} 5. Nc3 {[%clk 0:02:56.4]}
5... Nc6 {[%clk 0:02:45.1]} 6. e3 {[%clk 0:02:52.4]} 6... Be6 {[%clk 0:02:44.4]}
7. b3 {[%clk 0:02:49.6]} 7... e4 {[%clk 0:02:41]} 8. Ng1 {[%clk 0:02:43.1]} 8...
f5 {[%clk 0:02:35.9]} 9. f3 {[%clk 0:02:37.3]} 9... exf3 {[%clk 0:02:33.5]} 10.
Nxf3 {[%clk 0:02:36.4]} 10... Nf6 {[%clk 0:02:23.3]} 11. Ng5 {[%clk 0:02:21.1]}
11... Bd7 {[%clk 0:02:14.2]} 12. O-O {[%clk 0:02:14.4]} 12... O-O {[%clk
0:02:12.8]} 13. Bb2 {[%clk 0:01:32.8]} 13... Rb8 {[%clk 0:01:42.9]} 14. a3
{[%clk 0:01:14.8]} 14... Ne5 {[%clk 0:01:11.2]} 15. Qc2 {[%clk 0:01:00.2]} 15...
Nfg4 {[%clk 0:00:59.9]} 16. Nh3 {[%clk 0:00:52.7]} 16... a6 {[%clk 0:00:36.8]}
17. Rae1 {[%clk 0:00:48.9]} 17... Re8 {[%clk 0:00:31.9]} 18. Nf4 {[%clk
0:00:37.8]} 18... Kh8 {[%clk 0:00:25]} 19. Kh1 {[%clk 0:00:29]} 19... c6 {[%clk
0:00:17.5]} 20. h3 {[%clk 0:00:23.2]} 20... Nf6 {[%clk 0:00:16.4]} 21. d4 {[%clk
0:00:20.2]} 21... Nf7 {[%clk 0:00:16.2]} 22. e4 {[%clk 0:00:14.3]} 22... fxe4
{[%clk 0:00:16.7]} 23. Nxe4 {[%clk 0:00:14.6]} 23... Nxe4 {[%clk 0:00:17.3]} 24.
Bxe4 {[%clk 0:00:15]} 24... Ng5 {[%clk 0:00:17.3]} 25. Bg2 {[%clk 0:00:09.3]}
25... Qb6 {[%clk 0:00:15.8]} 26. Nxg6+ {[%clk 0:00:06.8]} 26... hxg6 {[%clk
0:00:13.7]} 27. Qxg6 {[%clk 0:00:07.7]} 27... Qd8 {[%clk 0:00:08.4]} 0-1

[Event "*** Titled Tuesday Blitz"]
[Site "Chess.com"]
[Date "2020.11.03"]
[Round "6"]
[White "Sergienko_Sergey"]
[Black "Sokoloco"]
[Result "0-1"]
[WhiteElo "2314"]
[BlackElo "2450"]
[TimeControl "180+1"]
[EndTime "11:10:10 PST"]
[Termination "Sokoloco won by resignation"]

1. e4 {[%clk 0:02:59]} 1... g6 {[%clk 0:02:58.9]} 2. d4 {[%clk 0:02:58.2]} 2...
Bg7 {[%clk 0:02:59.4]} 3. Nc3 {[%clk 0:02:56.2]} 3... d6 {[%clk 0:02:54.9]} 4.
f4 {[%clk 0:02:54.9]} 4... Nf6 {[%clk 0:02:51.9]} 5. Nf3 {[%clk 0:02:53.9]} 5...
O-O {[%clk 0:02:49.8]} 6. Bd3 {[%clk 0:02:52.2]} 6... c5 {[%clk 0:02:48.6]} 7.
d5 {[%clk 0:02:51]} 7... e6 {[%clk 0:02:48.1]} 8. dxe6 {[%clk 0:02:30.5]} 8...
Bxe6 {[%clk 0:02:46.5]} 9. O-O {[%clk 0:02:28.7]} 9... Qb6 {[%clk 0:02:36.5]}
10. Kh1 {[%clk 0:02:24.2]} 10... c4 {[%clk 0:02:23.9]} 11. Be2 {[%clk
0:02:19.7]} 11... Ng4 {[%clk 0:02:24.1]} 12. Qe1 {[%clk 0:02:15.2]} 12... Nc6
{[%clk 0:02:14.8]} 13. f5 {[%clk 0:01:59.3]} 13... gxf5 {[%clk 0:02:10.6]} 14.
exf5 {[%clk 0:01:55]} 14... Bxf5 {[%clk 0:02:11.5]} 15. Ng5 {[%clk 0:01:43.2]}
15... Ne3 {[%clk 0:00:58.4]} 16. Bxe3 {[%clk 0:01:38.7]} 16... Qxe3 {[%clk
0:00:59.3]} 17. Rxf5 {[%clk 0:01:32]} 17... Nd4 {[%clk 0:00:59.5]} 18. Nxf7
{[%clk 0:00:18.9]} 18... Nxf5 {[%clk 0:00:52.3]} 19. Bxc4 {[%clk 0:00:17.6]}
19... Qxe1+ {[%clk 0:00:44.3]} 20. Rxe1 {[%clk 0:00:17.3]} 20... Rxf7 {[%clk
0:00:44.8]} 21. Rf1 {[%clk 0:00:17.4]} 21... Nh6 {[%clk 0:00:32.5]} 22. Bxf7+
{[%clk 0:00:14.3]} 22... Nxf7 {[%clk 0:00:32.3]} 23. Nd5 {[%clk 0:00:13.9]}
23... Re8 {[%clk 0:00:30.6]} 24. c3 {[%clk 0:00:13.3]} 24... Re5 {[%clk
0:00:29.2]} 25. Rd1 {[%clk 0:00:13.2]} 25... Kf8 {[%clk 0:00:25.5]} 26. Kg1
{[%clk 0:00:12]} 26... Ng5 {[%clk 0:00:24.7]} 27. Kf1 {[%clk 0:00:11.2]} 27...
Ne4 {[%clk 0:00:23.6]} 28. c4 {[%clk 0:00:08.3]} 28... Ke8 {[%clk 0:00:20.9]}
29. b3 {[%clk 0:00:07]} 29... Kd7 {[%clk 0:00:20.6]} 30. Nf4 {[%clk 0:00:05.3]}
30... Rf5 {[%clk 0:00:19.6]} 31. g3 {[%clk 0:00:05.6]} 31... Bh6 {[%clk
0:00:19.5]} 32. Ke2 {[%clk 0:00:05.8]} 32... Bxf4 {[%clk 0:00:18.9]} 33. gxf4
{[%clk 0:00:05]} 33... Nc3+ {[%clk 0:00:19]} 0-1

[Event "*** Titled Tuesday Blitz"]
[Site "Chess.com"]
[Date "2020.11.03"]
[Round "6"]
[White "PattyCastillo"]
[Black "Mbneu"]
[Result "1-0"]
[WhiteElo "1939"]
[BlackElo "2206"]
[TimeControl "180+1"]
[EndTime "11:10:10 PST"]
[Termination "PattyCastillo won by resignation"]

1. d4 {[%clk 0:03:00.9]} 1... Nf6 {[%clk 0:02:59]} 2. Nf3 {[%clk 0:02:59.5]}
2... c5 {[%clk 0:02:59]} 3. e3 {[%clk 0:02:59.2]} 3... cxd4 {[%clk 0:02:58.2]}
4. exd4 {[%clk 0:02:59.3]} 4... b6 {[%clk 0:02:58.9]} 5. Bd3 {[%clk 0:02:58.9]}
5... Ba6 {[%clk 0:02:58.8]} 6. c4 {[%clk 0:02:57.7]} 6... g5 {[%clk 0:02:55.8]}
7. Bxg5 {[%clk 0:02:41.3]} 7... Bg7 {[%clk 0:02:54.9]} 8. O-O {[%clk 0:02:38]}
8... O-O {[%clk 0:02:53.3]} 9. Ne5 {[%clk 0:02:23.4]} 9... Nc6 {[%clk
0:01:35.8]} 10. Nxc6 {[%clk 0:02:07.4]} 10... dxc6 {[%clk 0:01:33.6]} 11. Be3
{[%clk 0:01:49.8]} 11... Qd7 {[%clk 0:01:23.6]} 12. Qf3 {[%clk 0:01:44.3]} 12...
Bb7 {[%clk 0:01:19.8]} 13. Nc3 {[%clk 0:01:41.8]} 13... Rad8 {[%clk 0:01:15.3]}
14. Rad1 {[%clk 0:01:41.2]} 14... Qg4 {[%clk 0:01:14]} 15. Qf5 {[%clk 0:01:28]}
15... e6 {[%clk 0:00:57.9]} 16. Qxg4 {[%clk 0:01:02]} 16... Nxg4 {[%clk
0:00:58.8]} 17. h3 {[%clk 0:00:51.6]} 17... Nxe3 {[%clk 0:00:55.7]} 18. fxe3
{[%clk 0:00:52.5]} 18... f5 {[%clk 0:00:43]} 19. Rf2 {[%clk 0:00:40.4]} 19...
Rd7 {[%clk 0:00:34.6]} 20. Rfd2 {[%clk 0:00:36]} 20... Rfd8 {[%clk 0:00:25]} 21.
Kf2 {[%clk 0:00:34.9]} 21... f4 {[%clk 0:00:19.4]} 22. exf4 {[%clk 0:00:21.3]}
22... Bxd4+ {[%clk 0:00:17.3]} 23. Kf1 {[%clk 0:00:18.7]} 23... Rg7 {[%clk
0:00:16.6]} 24. g4 {[%clk 0:00:17.1]} 24... Rf8 {[%clk 0:00:15.5]} 25. f5 {[%clk
0:00:16.1]} 25... exf5 {[%clk 0:00:12.9]} 26. Bxf5 {[%clk 0:00:16.2]} 26... Bc8
{[%clk 0:00:12.7]} 27. Rxd4 {[%clk 0:00:15.5]} 27... Bxf5 {[%clk 0:00:12.8]} 28.
gxf5 {[%clk 0:00:15.9]} 28... Rxf5+ {[%clk 0:00:12.7]} 29. Ke2 {[%clk
0:00:16.3]} 29... Re7+ {[%clk 0:00:12.8]} 30. Kd3 {[%clk 0:00:16.2]} 30... Rf3+
{[%clk 0:00:12.4]} 31. Kc2 {[%clk 0:00:16.2]} 31... Rxh3 {[%clk 0:00:11.8]} 32.
R4d3 {[%clk 0:00:15.9]} 32... Rh2+ {[%clk 0:00:11.6]} 33. R1d2 {[%clk
0:00:16.1]} 33... Rxd2+ {[%clk 0:00:11.5]} 34. Rxd2 {[%clk 0:00:17]} 34... h5
{[%clk 0:00:11.6]} 35. Rh2 {[%clk 0:00:16.1]} 35... Rh7 {[%clk 0:00:10.9]} 36.
Ne4 {[%clk 0:00:14.8]} 36... Kf7 {[%clk 0:00:11.3]} 37. Ng5+ {[%clk 0:00:14.6]}
1-0

[Event "*** Titled Tuesday Blitz"]
[Site "Chess.com"]
[Date "2020.11.03"]
[Round "6"]
[White "Superfelix"]
[Black "Igor_Lysyj"]
[Result "0-1"]
[WhiteElo "2462"]
[BlackElo "2823"]
[TimeControl "180+1"]
[EndTime "11:10:11 PST"]
[Termination "Igor_Lysyj won by resignation"]

1. e4 {[%clk 0:03:00.9]} 1... e5 {[%clk 0:02:59.1]} 2. Nf3 {[%clk 0:03:00.8]}
2... Nc6 {[%clk 0:02:58.3]} 3. d4 {[%clk 0:03:01.3]} 3... exd4 {[%clk
0:02:57.4]} 4. Nxd4 {[%clk 0:03:02.2]} 4... Nf6 {[%clk 0:02:56.9]} 5. Nc3 {[%clk
0:03:01.8]} 5... Bb4 {[%clk 0:02:55.9]} 6. Nxc6 {[%clk 0:03:02]} 6... bxc6
{[%clk 0:02:55.4]} 7. Bd3 {[%clk 0:03:02.3]} 7... O-O {[%clk 0:02:54]} 8. O-O
{[%clk 0:03:01.8]} 8... d5 {[%clk 0:02:54]} 9. exd5 {[%clk 0:03:02.7]} 9... cxd5
{[%clk 0:02:53.8]} 10. h3 {[%clk 0:03:02.5]} 10... c6 {[%clk 0:02:51.4]} 11. Qf3
{[%clk 0:03:02.3]} 11... Bd6 {[%clk 0:02:49]} 12. Bf4 {[%clk 0:03:01.9]} 12...
Qc7 {[%clk 0:02:45.6]} 13. Bxd6 {[%clk 0:03:00.8]} 13... Qxd6 {[%clk 0:02:45.7]}
14. Rfe1 {[%clk 0:03:01.5]} 14... Rb8 {[%clk 0:02:43.3]} 15. b3 {[%clk
0:03:01.8]} 15... Bd7 {[%clk 0:02:40.6]} 16. Rad1 {[%clk 0:02:59.5]} 16... Rfe8
{[%clk 0:02:38]} 17. Rxe8+ {[%clk 0:02:57.1]} 17... Rxe8 {[%clk 0:02:36.5]} 18.
Na4 {[%clk 0:02:51.8]} 18... Qb4 {[%clk 0:02:33.3]} 19. Qg3 {[%clk 0:02:47]}
19... h6 {[%clk 0:02:20.9]} 20. c3 {[%clk 0:02:22]} 20... Qa3 {[%clk 0:02:19.1]}
21. Qc7 {[%clk 0:02:10.1]} 21... Qxa2 {[%clk 0:02:15.6]} 22. Nc5 {[%clk
0:02:07.3]} 22... Bc8 {[%clk 0:01:51.1]} 23. Qxc6 {[%clk 0:02:03.3]} 23... Qb2
{[%clk 0:01:50.3]} 24. c4 {[%clk 0:01:45.2]} 24... dxc4 {[%clk 0:01:44.3]} 25.
Bxc4 {[%clk 0:01:46.1]} 25... Bf5 {[%clk 0:01:41.8]} 26. Qc7 {[%clk 0:01:35.5]}
26... Bg6 {[%clk 0:01:37]} 27. Qxa7 {[%clk 0:01:34.2]} 27... Qc2 {[%clk
0:01:33.7]} 28. Qa1 {[%clk 0:01:24.6]} 28... Nh5 {[%clk 0:01:25.8]} 29. Qc1
{[%clk 0:01:23.3]} 29... Qa2 {[%clk 0:01:22]} 30. Re1 {[%clk 0:01:16.9]} 30...
Rxe1+ {[%clk 0:01:06.3]} 31. Qxe1 {[%clk 0:01:17.8]} 31... Nf4 {[%clk
0:01:05.7]} 32. Nd7 {[%clk 0:01:14.2]} 32... Qa8 {[%clk 0:01:01.6]} 33. f3
{[%clk 0:01:10.3]} 33... Qa7+ {[%clk 0:01:01.3]} 34. Kh2 {[%clk 0:01:03.9]}
34... Qxd7 {[%clk 0:01:00.4]} 35. Qe5 {[%clk 0:01:04.4]} 35... Ne6 {[%clk
0:00:58]} 36. b4 {[%clk 0:01:04.1]} 36... Qc7 {[%clk 0:00:56.2]} 37. Qxc7 {[%clk
0:01:04]} 37... Nxc7 {[%clk 0:00:55.8]} 38. b5 {[%clk 0:01:04.5]} 38... Na8
{[%clk 0:00:55.7]} 39. Kg3 {[%clk 0:01:04.7]} 39... Kf8 {[%clk 0:00:55]} 40. Kf4
{[%clk 0:01:05.2]} 40... Ke7 {[%clk 0:00:54.8]} 41. Ke5 {[%clk 0:01:02.2]} 41...
Nb6 {[%clk 0:00:54.4]} 42. Be2 {[%clk 0:00:57.1]} 42... f6+ {[%clk 0:00:54.1]}
43. Kd4 {[%clk 0:00:57]} 43... Kd6 {[%clk 0:00:54.1]} 44. f4 {[%clk 0:00:57.6]}
44... Be8 {[%clk 0:00:53.2]} 45. g4 {[%clk 0:00:57.1]} 45... Bf7 {[%clk
0:00:51.6]} 46. h4 {[%clk 0:00:57.3]} 46... Be6 {[%clk 0:00:49.1]} 47. g5 {[%clk
0:00:56.5]} 47... Bd7 {[%clk 0:00:48]} 48. Ke4 {[%clk 0:00:54.8]} 48... Nd5
{[%clk 0:00:46.2]} 49. gxh6 {[%clk 0:00:52]} 49... gxh6 {[%clk 0:00:45.4]} 50.
Bc4 {[%clk 0:00:51.9]} 50... Nc3+ {[%clk 0:00:44.9]} 51. Kf3 {[%clk 0:00:51.7]}
51... Nxb5 {[%clk 0:00:43.9]} 52. Ke4 {[%clk 0:00:43.4]} 52... Nc7 {[%clk
0:00:42.8]} 53. f5 {[%clk 0:00:42.2]} 53... Be8 {[%clk 0:00:38.1]} 54. Kf4
{[%clk 0:00:42]} 54... Nd5+ {[%clk 0:00:37.2]} 55. Kg4 {[%clk 0:00:42.4]} 55...
Ne3+ {[%clk 0:00:36.5]} 0-1

[Event "*** Titled Tuesday Blitz"]
[Site "Chess.com"]
[Date "2020.11.03"]
[Round "6"]
[White "penguingm1"]
[Black "Enriquack"]
[Result "1-0"]
[WhiteElo "2818"]
[BlackElo "2289"]
[TimeControl "180+1"]
[EndTime "11:10:13 PST"]
[Termination "penguingm1 won by resignation"]

1. d4 {[%clk 0:02:55.8]} 1... Nf6 {[%clk 0:02:59.1]} 2. c4 {[%clk 0:02:42.6]}
2... g6 {[%clk 0:02:57.9]} 3. f3 {[%clk 0:02:43.1]} 3... c5 {[%clk 0:02:56.1]}
4. d5 {[%clk 0:02:43]} 4... b5 {[%clk 0:02:56.2]} 5. cxb5 {[%clk 0:02:42.9]}
5... a6 {[%clk 0:02:55.4]} 6. e4 {[%clk 0:02:41.9]} 6... d6 {[%clk 0:02:54.1]}
7. Nc3 {[%clk 0:02:40.1]} 7... Bg7 {[%clk 0:02:54.1]} 8. Be3 {[%clk 0:02:40.8]}
8... O-O {[%clk 0:02:53.5]} 9. a4 {[%clk 0:02:41.5]} 9... e6 {[%clk 0:02:53.4]}
10. Bc4 {[%clk 0:02:40.6]} 10... axb5 {[%clk 0:02:50.1]} 11. Bxb5 {[%clk
0:01:51.4]} 11... exd5 {[%clk 0:02:48.4]} 12. Nxd5 {[%clk 0:01:51.9]} 12... Bb7
{[%clk 0:02:41.5]} 13. Nc3 {[%clk 0:01:47.6]} 13... Nc6 {[%clk 0:02:37.1]} 14.
Nge2 {[%clk 0:01:47.1]} 14... Ne5 {[%clk 0:02:06.3]} 15. O-O {[%clk 0:01:43.7]}
15... Ba6 {[%clk 0:02:04.4]} 16. Qb3 {[%clk 0:01:23.5]} 16... Rb8 {[%clk
0:01:21.6]} 17. Rfd1 {[%clk 0:01:20.8]} 17... Qe7 {[%clk 0:01:19.2]} 18. Nf4
{[%clk 0:01:13.8]} 18... Nfg4 {[%clk 0:00:51.7]} 19. Ncd5 {[%clk 0:00:42.8]}
19... Qh4 {[%clk 0:00:47]} 20. fxg4 {[%clk 0:00:43.4]} 20... Nxg4 {[%clk
0:00:46.1]} 21. h3 {[%clk 0:00:37.9]} 21... Bxb5 {[%clk 0:00:34.1]} 22. axb5
{[%clk 0:00:35.1]} 22... Nxe3 {[%clk 0:00:33.8]} 23. Qxe3 {[%clk 0:00:33]} 23...
Rxb5 {[%clk 0:00:33]} 24. Rab1 {[%clk 0:00:13.3]} 24... Rfb8 {[%clk 0:00:30.1]}
25. b3 {[%clk 0:00:11.3]} 25... c4 {[%clk 0:00:27.4]} 26. b4 {[%clk 0:00:10.1]}
26... Be5 {[%clk 0:00:25.5]} 27. Ne2 {[%clk 0:00:09.1]} 27... Re8 {[%clk
0:00:21.2]} 28. Nc7 {[%clk 0:00:07.3]} 28... Rbb8 {[%clk 0:00:20.2]} 29. Nxe8
{[%clk 0:00:07.7]} 29... Rxe8 {[%clk 0:00:21.1]} 30. b5 {[%clk 0:00:08.2]} 30...
Qd8 {[%clk 0:00:18.9]} 31. b6 {[%clk 0:00:08.3]} 31... Qb8 {[%clk 0:00:19.2]}
32. b7 {[%clk 0:00:08.6]} 32... f5 {[%clk 0:00:19.6]} 33. Nc3 {[%clk 0:00:08.2]}
33... Bf6 {[%clk 0:00:17.7]} 34. Nd5 {[%clk 0:00:08.2]} 34... Bg7 {[%clk
0:00:17.9]} 35. Qb6 {[%clk 0:00:06.4]} 35... Rxe4 {[%clk 0:00:17.3]} 36. Qc7
{[%clk 0:00:05.7]} 36... Re8 {[%clk 0:00:17.8]} 37. Ne7+ {[%clk 0:00:04.6]}
37... Kf7 {[%clk 0:00:17.5]} 38. Qxb8 {[%clk 0:00:05.1]} 38... Rxb8 {[%clk
0:00:17.2]} 39. Nc6 {[%clk 0:00:06]} 1-0

[Event "*** Titled Tuesday Blitz"]
[Site "Chess.com"]
[Date "2020.11.03"]
[Round "6"]
[White "ErikRonka"]
[Black "levallem"]
[Result "1-0"]
[WhiteElo "2380"]
[BlackElo "2242"]
[TimeControl "180+1"]
[EndTime "11:10:14 PST"]
[Termination "ErikRonka won by resignation"]

1. d4 {[%clk 0:03:00.9]} 1... Nf6 {[%clk 0:02:39]} 2. Bg5 {[%clk 0:02:55.6]}
2... g6 {[%clk 0:02:39.9]} 3. Bxf6 {[%clk 0:02:55]} 3... exf6 {[%clk 0:02:40]}
4. g3 {[%clk 0:02:55.5]} 4... Bg7 {[%clk 0:02:40.4]} 5. Bg2 {[%clk 0:02:55.1]}
5... O-O {[%clk 0:02:41.3]} 6. e3 {[%clk 0:02:55.5]} 6... d5 {[%clk 0:02:41.7]}
7. Ne2 {[%clk 0:02:54.8]} 7... c6 {[%clk 0:02:38]} 8. Nd2 {[%clk 0:02:55.2]}
8... Nd7 {[%clk 0:02:38]} 9. O-O {[%clk 0:02:55.6]} 9... f5 {[%clk 0:02:36.7]}
10. b3 {[%clk 0:02:55]} 10... Nf6 {[%clk 0:02:37.2]} 11. c4 {[%clk 0:02:54.8]}
11... Ne4 {[%clk 0:02:37.6]} 12. Qc2 {[%clk 0:02:49.9]} 12... Bd7 {[%clk
0:02:30.8]} 13. Rfc1 {[%clk 0:02:47.4]} 13... Rc8 {[%clk 0:02:23.9]} 14. b4
{[%clk 0:02:44.2]} 14... a6 {[%clk 0:02:01.7]} 15. a4 {[%clk 0:02:42.3]} 15...
Qe7 {[%clk 0:01:32.5]} 16. cxd5 {[%clk 0:02:28.6]} 16... cxd5 {[%clk 0:01:32.1]}
17. Qb2 {[%clk 0:02:29.1]} 17... Rxc1+ {[%clk 0:01:25.8]} 18. Rxc1 {[%clk
0:02:28.4]} 18... Re8 {[%clk 0:01:26.3]} 19. Nf4 {[%clk 0:02:27.1]} 19... Bxa4
{[%clk 0:01:12.1]} 20. Nxd5 {[%clk 0:02:23.8]} 20... Qd6 {[%clk 0:01:09.2]} 21.
Nxe4 {[%clk 0:02:16.9]} 21... fxe4 {[%clk 0:01:07.6]} 22. Nc3 {[%clk 0:02:15.2]}
22... Bc6 {[%clk 0:01:07]} 23. b5 {[%clk 0:02:14.8]} 23... axb5 {[%clk 0:01:05]}
24. Nxb5 {[%clk 0:02:15.7]} 24... Qd7 {[%clk 0:01:00]} 25. Na7 {[%clk
0:02:06.9]} 25... Bd5 {[%clk 0:00:57.2]} 26. Qb6 {[%clk 0:02:05]} 26... Re6
{[%clk 0:00:49.3]} 27. Qb4 {[%clk 0:01:20.9]} 27... h6 {[%clk 0:00:37.4]} 28. h3
{[%clk 0:01:15.7]} 28... Ra6 {[%clk 0:00:34.7]} 29. Nc8 {[%clk 0:01:14.4]} 29...
Bf8 {[%clk 0:00:21.9]} 30. Qb1 {[%clk 0:00:47.5]} 30... b5 {[%clk 0:00:07.6]}
31. Bxe4 {[%clk 0:00:41.1]} 31... Rc6 {[%clk 0:00:05.8]} 32. Rxc6 {[%clk
0:00:24.1]} 32... Bxc6 {[%clk 0:00:05.3]} 33. Nb6 {[%clk 0:00:21.4]} 33... Bxe4
{[%clk 0:00:05]} 34. Qxe4 {[%clk 0:00:22.3]} 34... Qc7 {[%clk 0:00:04.8]} 35.
Nd5 {[%clk 0:00:21.1]} 35... Qc1+ {[%clk 0:00:04.6]} 36. Kg2 {[%clk 0:00:21.7]}
36... Qc6 {[%clk 0:00:04.1]} 37. Ne7+ {[%clk 0:00:20.3]} 37... Bxe7 {[%clk
0:00:03.1]} 38. Qxc6 {[%clk 0:00:20.8]} 1-0

[Event "*** Titled Tuesday Blitz"]
[Site "Chess.com"]
[Date "2020.11.03"]
[Round "6"]
[White "Tactictic"]
[Black "AsaHoffmann"]
[Result "1-0"]
[WhiteElo "2405"]
[BlackElo "2298"]
[TimeControl "180+1"]
[EndTime "11:10:16 PST"]
[Termination "Tactictic won by resignation"]

1. e4 {[%clk 0:03:00.9]} 1... d6 {[%clk 0:02:57]} 2. d4 {[%clk 0:03:00.5]} 2...
Nf6 {[%clk 0:02:56.2]} 3. Nc3 {[%clk 0:03:00.8]} 3... c6 {[%clk 0:02:56.1]} 4.
Nf3 {[%clk 0:02:58.2]} 4... Bg4 {[%clk 0:02:55.3]} 5. h3 {[%clk 0:02:54.2]} 5...
Bh5 {[%clk 0:02:54.9]} 6. Bd3 {[%clk 0:02:48.9]} 6... e6 {[%clk 0:02:54.6]} 7.
O-O {[%clk 0:02:47.3]} 7... d5 {[%clk 0:02:54.6]} 8. Re1 {[%clk 0:02:39.3]} 8...
Be7 {[%clk 0:02:53.3]} 9. Bf4 {[%clk 0:02:28.1]} 9... O-O {[%clk 0:02:52.2]} 10.
a4 {[%clk 0:02:20.4]} 10... a5 {[%clk 0:02:50.4]} 11. Re3 {[%clk 0:02:16.5]}
11... dxe4 {[%clk 0:02:48.9]} 12. Nxe4 {[%clk 0:02:15.4]} 12... Nd5 {[%clk
0:02:47.7]} 13. Bxb8 {[%clk 0:01:56.4]} 13... Nxe3 {[%clk 0:02:46.6]} 14. fxe3
{[%clk 0:01:54.9]} 14... Rxb8 {[%clk 0:02:41.1]} 15. Qf1 {[%clk 0:01:55.3]}
15... Bxf3 {[%clk 0:02:36.5]} 16. Qxf3 {[%clk 0:01:54.6]} 16... f5 {[%clk
0:02:36.3]} 17. Nd2 {[%clk 0:01:46.2]} 17... Kh8 {[%clk 0:02:31.5]} 18. c3
{[%clk 0:01:42.2]} 18... e5 {[%clk 0:02:21.6]} 19. Qe2 {[%clk 0:01:20.9]} 19...
Bf6 {[%clk 0:02:11.1]} 20. Rf1 {[%clk 0:01:10.1]} 20... e4 {[%clk 0:02:01.8]}
21. Bc2 {[%clk 0:01:00.3]} 21... b5 {[%clk 0:01:58.1]} 22. Rxf5 {[%clk
0:00:51.4]} 22... bxa4 {[%clk 0:01:55.2]} 23. Nc4 {[%clk 0:00:43.4]} 23... Rb5
{[%clk 0:01:43.5]} 24. Rf4 {[%clk 0:00:20]} 24... Re8 {[%clk 0:01:32.1]} 25.
Bxe4 {[%clk 0:00:18.4]} 25... Bg5 {[%clk 0:01:25.8]} 26. Bxc6 {[%clk 0:00:15]}
26... Bxf4 {[%clk 0:01:22.9]} 27. Bxb5 {[%clk 0:00:15.3]} 27... Re7 {[%clk
0:01:16.2]} 28. Qf3 {[%clk 0:00:15.3]} 28... Bh6 {[%clk 0:01:12.7]} 29. Ne5
{[%clk 0:00:10.4]} 29... Rxe5 {[%clk 0:00:58.7]} 30. dxe5 {[%clk 0:00:11.3]}
30... Bg5 {[%clk 0:00:56.6]} 31. Bxa4 {[%clk 0:00:10.1]} 31... h6 {[%clk
0:00:55.3]} 32. e6 {[%clk 0:00:09.3]} 32... Qe7 {[%clk 0:00:54.3]} 33. Qf7
{[%clk 0:00:08.9]} 33... Bxe3+ {[%clk 0:00:53.5]} 34. Kf1 {[%clk 0:00:07.8]}
34... Bc5 {[%clk 0:00:50.8]} 35. Qe8+ {[%clk 0:00:02.8]} 35... Qxe8 {[%clk
0:00:50.3]} 36. Bxe8 {[%clk 0:00:03.7]} 36... g5 {[%clk 0:00:50.3]} 37. Bf7
{[%clk 0:00:04.4]} 37... Kg7 {[%clk 0:00:50.1]} 38. Ke2 {[%clk 0:00:05]} 38...
Kf6 {[%clk 0:00:50.1]} 39. Kd3 {[%clk 0:00:05.3]} 39... Ke5 {[%clk 0:00:50.1]}
40. Kc4 {[%clk 0:00:05.4]} 40... Be7 {[%clk 0:00:50]} 41. Kb5 {[%clk 0:00:03.8]}
41... Ke4 {[%clk 0:00:49.9]} 42. Kxa5 {[%clk 0:00:03.7]} 42... Kd3 {[%clk
0:00:49.6]} 43. b4 {[%clk 0:00:02.8]} 43... Kxc3 {[%clk 0:00:49.4]} 44. b5
{[%clk 0:00:03.7]} 44... Kc4 {[%clk 0:00:49.3]} 45. b6 {[%clk 0:00:04.6]} 45...
Kc5 {[%clk 0:00:49.1]} 46. Ka6 {[%clk 0:00:04.9]} 46... Kc6 {[%clk 0:00:48.6]}
47. b7 {[%clk 0:00:04.5]} 47... Kc7 {[%clk 0:00:48.7]} 48. Ka7 {[%clk
0:00:04.4]} 48... Bc5+ {[%clk 0:00:48.4]} 49. Ka8 {[%clk 0:00:04.9]} 1-0